fUSD/lending_fUSD_20251120
["ID","MTS","AMOUNT","RATE_DAILY","PERIOD"]
[394488976,1763621443440,-469.0,0.00017156,2]
[394488977,1763621443450,-663.0,0.00017176,2]
[394488978,1763621443459,-500.0,0.00017179,2]
[394488979,1763621443469,-500.0,0.00017179,2]
[394488980,1763621443479,-484.0,0.00017184,2]
[394488981,1763621443489,-519.0,0.00017184,2]
[394488982,1763621443503,-469.0,0.00017184,2]
[394488983,1763621443512,-663.0,0.00017203,2]
[394488984,1763621443523,-500.0,0.00017205,2]
[394488985,1763621443533,-500.0,0.00017206,2]
[394488986,1763621443542,-500.0,0.00017206,2]
[394488987,1763621443552,-484.0,0.00017211,2]
[394488988,1763621443563,-519.0,0.00017211,2]
[394488989,1763621443573,-469.0,0.00017211,2]
[394488990,1763621443582,-663.0,0.00017231,2]
[394488991,1763621443592,-500.0,0.00017234,2]
[394488992,1763621443602,-484.0,0.00017238,2]
[394488993,1763621443611,-519.0,0.00017238,2]
[394488994,1763621443622,-469.0,0.00017238,2]
[394488995,1763621443631,-262.0,0.00017242,2]
[394488996,1763621443641,-663.0,0.00017258,2]
[394488997,1763621443651,-935.0,0.0001726,2]
[394488998,1763621443661,-500.0,0.00017261,2]
[394488999,1763621443670,-1273.56,0.00017261,2]
[394489000,1763621443682,-484.0,0.00017266,2]
[394489001,1763621443694,-519.0,0.00017266,2]
[394489002,1763621443708,-469.0,0.00017266,2]
[394489003,1763621443719,-179.56715004,0.00017283,2]
[394489004,1763621443730,-2852.70424298,0.00017283,2]
[394489005,1763621443740,-663.0,0.00017285,2]
[394489006,1763621443750,-500.0,0.00017288,2]
[394489007,1763621443760,-484.0,0.00017293,2]
[394489008,1763621443770,-519.0,0.00017293,2]
[394489009,1763621443780,-469.0,0.00017293,2]
[394489010,1763621443790,-663.0,0.00017313,2]
[394489011,1763621443800,-246.2459642,0.00017316,2]
[394489012,1763621443809,-3183.09476509,0.00017316,2]
[394489013,1763621443819,-484.0,0.00017321,2]
[394489015,1763621443829,-519.0,0.00017321,2]
[394489017,1763621443838,-469.0,0.00017321,2]
[394489019,1763621443848,-663.0,0.0001734,2]
[394489021,1763621443858,-484.0,0.00017348,2]
[394489023,1763621443867,-519.0,0.00017348,2]
[394489025,1763621443877,-469.0,0.00017348,2]
[394489026,1763621443886,-663.0,0.00017368,2]
[394489027,1763621443895,-178.51051391,0.00017371,2]
[394489028,1763621443908,-484.0,0.00017375,2]
[394489029,1763621443918,-519.0,0.00017375,2]
[394489030,1763621443927,-469.0,0.00017375,2]
[394489031,1763621443938,-663.0,0.00017395,2]
[394489032,1763621443948,-150.0,0.000174,2]
[394489033,1763621443957,-484.0,0.00017403,2]
[394489034,1763621443967,-519.0,0.00017403,2]
[394489035,1763621443976,-469.0,0.00017403,2]
[394489036,1763621443986,-262.0,0.00017413,2]
[394489037,1763621443996,-663.0,0.00017422,2]
[394489038,1763621444005,-339.80741063,0.0001743,2]
[394489039,1763621444015,-524.81028537,0.0001743,2]
[394489040,1763621444024,-491.83613208,0.0001743,2]
[394489041,1763621444034,-1116.71130263,0.00017435,2]
[394489042,1763621444044,-663.0,0.0001745,2]
[394489043,1763621444054,-261.98726429,0.00017456,2]
[394489044,1763621444063,-884.36283049,0.00017456,2]
[394489045,1763621444073,-215.58724508,0.00017459,2]
[394489046,1763621444082,-1000.0,0.00017459,2]
[394489047,1763621444092,-1000.0,0.0001746,2]
[394489048,1763621444102,-500.0,0.0001746,2]
[394489049,1763621444114,-673.94790388,0.00017477,2]
[394489050,1763621444124,-415.61370264,0.00017486,2]
[394489051,1763621444133,-179.56715004,0.00017488,2]
[394489052,1763621444143,-2852.70424298,0.00017488,2]
[394489053,1763621444153,-6548.50245809,0.000175,2]
[394489054,1763621444162,-250.39896597,0.000175,2]
[394489055,1763621444171,-3183.09476509,0.00017511,2]
[394489056,1763621444182,-1273.56,0.00017535,2]
[394489057,1763621444192,-378.59,0.00017548,2]
[394489058,1763621444202,-1464.75324384,0.00017571,2]
[394489059,1763621444212,-3209.0,0.00017618,2]
[394489060,1763621444222,-2904.0,0.00017634,2]
[394489061,1763621444232,-178.51051391,0.00017635,2]
[394489062,1763621444404,-420.0,0.0001765,2]
[394489063,1763621444414,-200.0,0.00017653,2]
[394489064,1763621444424,-200.0,0.00017653,2]
[394489065,1763621444434,-200.0,0.00017653,2]
[394489066,1763621444443,-200.0,0.00017653,2]
[394489067,1763621444455,-261.06554837,0.00017653,2]
[394489068,1763621444464,-263.27950744,0.00017653,2]
[394489069,1763621444474,-292.39701435,0.00017653,2]
[394489070,1763621444484,-300.0,0.00017653,2]
[394489071,1763621444494,-300.0,0.00017653,2]
[394489072,1763621444504,-300.0,0.00017653,2]
[394489073,1763621444514,-300.0,0.00017653,2]
[394489074,1763621444523,-300.0,0.00017653,2]
[394489075,1763621444533,-150.0,0.00017653,2]
[394489076,1763621444543,-300.0,0.00017653,2]
[394489077,1763621444552,-193.0,0.00017653,2]
[394489078,1763621444562,-250.0,0.00017653,2]
[394489079,1763621444571,-5000.0,0.00017653,4]
[394489080,1763621444580,-179.56715004,0.00017694,2]
[394489081,1763621444590,-2852.70424298,0.00017694,2]
[394489082,1763621444599,-1000.0,0.000177,2]
[394489083,1763621444609,-3183.09476509,0.00017705,2]
[394489084,1763621444618,-1680.0,0.00017738,2]
[394489085,1763621444627,-167.56685966,0.00017741,2]
[394489086,1763621444636,-250.0,0.00017763,2]
[394489087,1763621444646,-217.54708395,0.0001778,2]
[394489088,1763621444655,-1931.33294922,0.00017782,2]
[394489089,1763621444664,-3209.0,0.00017786,2]
[394489090,1763621444673,-167.56685966,0.00017794,2]
[394489091,1763621444683,-162.95436659,0.00017796,2]
[394489092,1763621444692,-1000.0,0.000178,2]
[394489093,1763621444702,-1931.33294916,0.00017802,2]
[394489094,1763621444711,-500.0,0.00017808,2]
[394489095,1763621444720,-1273.56,0.00017809,2]
[394489096,1763621444730,-2304.27975,0.0001782,2]
[394489097,1763621444739,-1931.33294916,0.00017821,2]
[394489098,1763621444749,-273.98,0.00017827,2]
[394489099,1763621444760,-500.0,0.00017835,2]
[394489100,1763621444769,-500.0,0.00017836,2]
[394489101,1763621444779,-1931.33294916,0.00017841,2]
[394489102,1763621444788,-167.56685966,0.00017847,2]
[394489103,1763621444797,-200.0,0.00017855,2]
[394489104,1763621444807,-2000.0,0.00017856,2]
[394489105,1763621444816,-200.0,0.00017856,2]
[394489106,1763621444825,-200.0,0.00017856,2]
[394489107,1763621444835,-1931.33294916,0.00017861,2]
[394489108,1763621444845,-500.0,0.00017863,2]
[394489109,1763621444854,-3434.0,0.00017867,2]
[394489110,1763621444864,-1319.0,0.00017867,2]
[394489111,1763621444874,-575.0,0.00017867,2]
[394489112,1763621444883,-609.784,0.00017867,2]
[394489113,1763621444893,-1601.547,0.00017867,2]
[394489114,1763621444902,-822.0,0.00017867,2]
[394489115,1763621444911,-930.251,0.00017867,2]
[394489116,1763621444920,-798.021,0.00017867,2]
[394489117,1763621444929,-1256.0,0.00017867,2]
[394489118,1763621444938,-150.0,0.00017867,2]
[394489119,1763621444949,-708.819,0.00017867,2]
[394489120,1763621444959,-1605.0,0.00017867,2]
[394489121,1763621444973,-561.0,0.00017867,2]
[394489122,1763621444983,-2500.0,0.00017868,2]
[394489123,1763621444992,-193.0,0.00017868,2]
[394489124,1763621445002,-250.0,0.00017868,2]
[394489125,1763621445011,-25000.0,0.00017874,3]
[394489126,1763621445020,-479.55759781,0.0001788,3]
[394489127,1763621445030,-1931.33294916,0.0001788,2]
[394489128,1763621445039,-25000.0,0.00017882,3]
[394489129,1763621445049,-1252.86285827,0.0001789,2]
[394489130,1763621445059,-500.0,0.0001789,2]
[394489131,1763621445068,-25000.0,0.00017891,3]
[394489132,1763621445078,-179.96414648,0.000179,3]
[394489133,1763621445087,-25000.0,0.000179,3]
[394489134,1763621445096,-467.4881,0.000179,2]
[394489135,1763621445105,-1931.33294916,0.000179,2]
[394489136,1763621445118,-167.56685966,0.000179,2]
[394489137,1763621445127,-295.80418224,0.000179,2]
[394489138,1763621445137,-3183.09476509,0.000179,2]
[394489139,1763621445147,-178.51051391,0.000179,2]
[394489140,1763621445156,-179.56715004,0.000179,2]
[394489141,1763621445164,-2852.70424298,0.000179,2]
[394489142,1763621445174,-27793.82354216,0.000179,2]
[394489143,1763621445183,-500.37989577,0.000179,2]
[394489144,1763621445193,-10309.04130668,0.000179,2]
[394489145,1763621445202,-4994.0,0.000179,2]
[394489146,1763621445212,-300.0,0.00017909,2]
[394489147,1763621445221,-632.5410417,0.00017918,2]
[394489148,1763621445230,-151.0,0.00017936,2]
[394489149,1763621445240,-491.46,0.00017939,2]
[394489150,1763621445249,-478.61,0.00017939,2]
[394489151,1763621445259,-478.61,0.00017939,2]
[394489152,1763621445269,-957.36,0.0001794,2]
[394489153,1763621445282,-478.61,0.0001794,2]
[394489154,1763621445292,-478.61,0.0001794,2]
[394489155,1763621445301,-478.61,0.0001794,2]
[394489156,1763621445312,-3870.730872,0.00017959,2]
[394489157,1763621445321,-500.0,0.00017972,2]
[394489158,1763621445331,-126350.0,0.00017973,2]
[394489159,1763621445340,-647.0,0.00017973,2]
[394489160,1763621445350,-5954.0,0.00017973,2]
[394489161,1763621445361,-500.0,0.00017973,2]
[394489162,1763621445371,-500.0,0.00017973,2]
[394489163,1763621445380,-161.60192736,0.00017973,2]
[394489164,1763621445389,-500.0,0.00017973,2]
[394489165,1763621445399,-316.17285237,0.00017973,2]
[394489166,1763621445409,-500.0,0.00017973,2]
[394489167,1763621445418,-500.0,0.00017973,2]
[394489168,1763621445428,-500.47789219,0.00017973,2]
[394489169,1763621445439,-501.27362339,0.00017973,2]
[394489170,1763621445448,-500.0,0.00017973,2]
[394489171,1763621445458,-500.0,0.00017973,2]
[394489172,1763621445467,-500.0,0.00017973,2]
[394489173,1763621445477,-500.0,0.00017973,2]
[394489174,1763621445487,-500.0,0.00017973,2]
[394489175,1763621445496,-306.47710227,0.00017973,2]
[394489176,1763621445506,-500.0,0.00017973,2]
[394489177,1763621445516,-160.73608923,0.00017973,2]
[394489178,1763621445525,-500.0,0.00017973,2]
[394489179,1763621445535,-501.20084487,0.00017973,2]
[394489180,1763621445544,-500.0,0.00017973,2]
[394489181,1763621445554,-500.0,0.00017973,2]
[394489182,1763621445564,-500.0,0.00017973,2]
[394489183,1763621445574,-500.0,0.00017973,2]
[394489184,1763621445584,-607.71724465,0.00017973,2]
[394489185,1763621445595,-500.0,0.00017973,2]
[394489186,1763621445604,-500.0,0.00017973,2]
[394489187,1763621445614,-500.0,0.00017973,2]
[394489188,1763621445624,-500.0,0.00017973,2]
[394489189,1763621445634,-500.0,0.00017973,2]
[394489190,1763621445644,-264.00640114,0.00017973,2]
[394489191,1763621445654,-500.0,0.00017973,2]
[394489192,1763621445663,-500.0,0.00017973,2]
[394489193,1763621445673,-500.0,0.00017973,2]
[394489194,1763621445686,-287943.7978315,0.00017974,2]
[394489195,1763621445696,-10203.2302091,0.00017974,2]
[394489196,1763621445706,-3544.6128079,0.00017974,2]
[394489197,1763621445717,-64556.4737148,0.00017978,2]
[394489198,1763621445727,-18815.9575866,0.00017978,2]
[394489199,1763621445737,-280.0,0.00017988,2]
[394489200,1763621445746,-1252.86285827,0.0001799,2]
[394489201,1763621445756,-1252.86285827,0.0001799,2]
[394489202,1763621445766,-151.0,0.00017997,2]
[394489203,1763621445775,-351.02217685,0.00017999,2]
[394489204,1763621445785,-300.0,0.00017999,2]
[394489205,1763621445794,-500.0,0.00017999,2]
[394489206,1763621445803,-500.0,0.00017999,2]
[394489207,1763621445813,-500.0,0.00017999,2]
[394489208,1763621445822,-500.0,0.00017999,2]
[394489209,1763621445831,-500.0,0.00017999,2]
[394489210,1763621445841,-500.0,0.00017999,2]
[394489211,1763621445850,-500.0,0.00017999,2]
[394489212,1763621445859,-500.0,0.00017999,2]
[394489213,1763621445869,-500.0,0.00017999,2]
[394489214,1763621445878,-500.0,0.00017999,2]
[394489215,1763621445887,-500.0,0.00017999,2]
[394489216,1763621445897,-500.0,0.00017999,2]
[394489217,1763621445906,-500.0,0.00017999,2]
[394489218,1763621445915,-500.0,0.00017999,2]
[394489219,1763621445925,-500.0,0.00017999,2]
[394489220,1763621445936,-500.0,0.00017999,2]
[394489221,1763621445946,-500.0,0.00017999,2]
[394489222,1763621445955,-611.32299022,0.00017999,2]
[394489223,1763621445964,-300.0,0.00017999,2]
[394489224,1763621445973,-300.0,0.00017999,2]
[394489225,1763621445982,-162.44314539,0.00018,2]
[394489226,1763621445991,-157.46326484,0.00018,2]
[394489227,1763621446000,-152.94100217,0.00018,2]
[394489228,1763621446009,-158.27867006,0.00018,2]
[394489229,1763621446018,-161.16722895,0.00018,2]
[394489230,1763621446027,-163.88615832,0.00018,2]
[394489231,1763621446036,-156.98001533,0.00018,2]
[394489232,1763621446046,-4027021.306236,0.00018,2]
[394489233,1763621446055,-885.58318675,0.00018,2]
[394489234,1763621446064,-140440.36279672,0.00018,2]
[394489235,1763621446073,-150.0,0.00018,2]
[394489236,1763621446083,-596.25347022,0.00018,2]
[394489237,1763621446092,-2358224.86197013,0.00018,2]
[394489238,1763621446241,-5272.1125567,0.00018,2]
[394489239,1763621446252,-10250.8,0.00018,2]
[394489240,1763621446440,-34961.15951429,0.00018,2]
[394489241,1763621446452,-159423.56297496,0.00018,2]
[394489242,1763621446466,-944.2079471,0.00018,2]
[394489243,1763621446478,-6948.37596613,0.00018,2]
[394489244,1763621446489,-2268.9727187,0.00018,2]
[394489246,1763621446562,150.687338,0.0004204,120]
[394489247,1763621446623,152.787224,0.0004204,120]
[394489248,1763621446785,152.787224,0.0004204,120]
[394489249,1763621446841,150.687338,0.0004204,120]
[394489250,1763621446858,-1557.26453287,0.00017979,2]
[394489251,1763621446869,-442.73546713,0.00017979,2]
[394489252,1763621447001,-1857.26453287,0.00017979,2]
[394489253,1763621447064,152.787224,0.0004204,120]
[394489254,1763621447126,150.687338,0.0004204,120]
[394489255,1763621447190,152.787224,0.0004204,120]
[394489256,1763621447254,150.687338,0.0004204,120]
[394489257,1763621447274,-142.73546713,0.00017979,2]
[394489258,1763621447285,-1052.58489171,0.00017979,2]
[394489259,1763621447296,-947.41510829,0.00017979,2]
[394489260,1763621447306,-2000.0,0.00017979,2]
[394489261,1763621447315,-2000.0,0.00017979,2]
[394489262,1763621447325,-2000.0,0.00017979,2]
[394489263,1763621447334,-2592301.18564833,0.00018,2]
[394489264,1763621447391,152.787224,0.0004204,120]
[394489265,1763621447460,150.687338,0.0004204,120]
[394489266,1763621447516,152.787224,0.0004204,120]
[394489267,1763621447582,152.787224,0.0004204,120]
[394489268,1763621447641,150.687338,0.0004204,120]
[394489269,1763621447671,-2000.0,0.00017979,2]
[394489270,1763621447681,-2000.0,0.00017979,2]
[394489271,1763621447690,-2000.0,0.00017979,2]
[394489272,1763621447699,-1805.259,0.00017979,2]
[394489273,1763621447709,-15272.79102346,0.00018,2]
[394489274,1763621447795,152.787224,0.0004204,120]
[394489275,1763621447868,150.687338,0.0004204,120]
[394489276,1763621448233,150.687338,0.0004204,120]
[394489277,1763621448583,150.687338,0.0004204,120]
[394489278,1763621448947,150.687338,0.0004204,120]
[394489279,1763621450627,150.687338,0.0004204,120]
[394489280,1763621451016,150.687338,0.0004204,120]
[394489281,1763621453534,150.687338,0.0004204,120]
[394489282,1763621454743,150.687338,0.0004204,120]
[394489283,1763621456862,150.687338,0.0004204,120]
[394489284,1763621458729,150.687338,0.0004204,120]
[394489285,1763621459478,150.687338,0.0004204,120]
[394489286,1763621460012,150.687338,0.0004204,120]
[394489287,1763621460606,150.687338,0.0004204,120]
[394489288,1763621461181,150.687338,0.0004204,120]
[394489289,1763621461538,150.687338,0.0004204,120]
[394489290,1763621463472,150.687338,0.0004204,120]
[394489291,1763621463827,150.687338,0.0004204,120]
[394489292,1763621464208,150.687338,0.0004204,120]
[394489293,1763621464567,150.687338,0.0004204,120]
[394489294,1763621464928,150.687338,0.0004204,120]
[394489295,1763621465278,150.687338,0.0004204,120]
[394489296,1763621465602,150.687338,0.0004204,120]
[394489297,1763621465949,150.687338,0.0004204,120]
[394489298,1763621466293,150.687338,0.0004204,120]
[394489299,1763621466605,150.687338,0.0004204,120]
[394489300,1763621467270,150.687338,0.0004204,120]
[394489301,1763621467334,150.687338,0.0004204,120]
[394489302,1763621467682,150.687338,0.0004204,120]
[394489304,1763621468035,150.687338,0.0004204,120]
[394489305,1763621468381,150.687338,0.0004204,120]
[394489306,1763621472778,153.701097,0.0004204,120]
[394489307,1763621473212,153.701097,0.0004204,120]
[394489317,1763621506263,153.701085,0.0004204,120]
[394489318,1763621506590,153.701085,0.0004204,120]
[394489322,1763621519065,2332.15296955,0.0004204,37]
[394489367,1763621605311,18058.29,0.0004204,30]
[394489379,1763621627487,601.4827413,0.0004204,67]
[394489400,1763621682648,588.36,0.00013699,2]
[394489437,1763621772879,999.0,0.00015947,3]
[394489461,1763621830259,609.45,0.00032877,120]
[394489486,1763622063370,382.39640168,0.00013699,2]
[394489487,1763622063400,151.0,0.00013699,2]
[394489488,1763622076568,200.4318045,0.00015921,2]
[394489513,1763622129278,151.0,0.00041986,120]
[394489514,1763622129583,151.0,0.00041986,120]
[394489515,1763622129952,151.0,0.00041986,120]
[394489516,1763622130339,151.0,0.00041986,120]
[394489517,1763622130741,151.0,0.00041986,120]
[394489518,1763622131118,151.0,0.00041986,120]
[394489522,1763622187662,151.0,0.00041986,120]
[394489523,1763622187969,151.0,0.00041986,120]
[394489524,1763622188299,151.0,0.00041986,120]
[394489525,1763622188593,151.0,0.00041986,120]
[394489526,1763622188899,151.0,0.00041986,120]
[394489527,1763622189200,151.0,0.00041986,120]
[394489528,1763622189493,151.0,0.00041986,120]
[394489529,1763622189808,151.0,0.00041986,120]
[394489530,1763622190105,151.0,0.00041986,120]
[394489531,1763622190402,267.821587,0.00041986,120]
[394489532,1763622200756,151.0,0.00041986,120]
[394489533,1763622201062,152.669026,0.00041986,120]
[394489534,1763622212740,266.12028629,0.00041986,120]
[394489536,1763622246703,291.60994986,0.00041986,120]
[394489539,1763622261423,151.0,0.00041986,60]
[394489540,1763622261916,157.095647,0.00041986,60]
[394489543,1763622274630,151.0,0.00041986,30]
[394489544,1763622274926,151.0,0.00041986,30]
[394489545,1763622275506,151.0,0.00041986,30]
[394489546,1763622275936,166.521664,0.00041986,30]
[394489551,1763622311592,158.916773,0.00041987,120]
[394489554,1763622364059,573.59460252,0.00015921,2]
[394489555,1763622364341,151.0,0.00015921,2]
[394489556,1763622365166,286.79730126,0.00015921,2]
[394489557,1763622395581,151.0,0.00041987,60]
[394489558,1763622397792,151.0,0.00041987,120]
[394489559,1763622398198,151.0,0.00041987,120]
[394489560,1763622399222,151.0,0.00041987,120]
[394489561,1763622503256,151.0,0.00041987,120]
[394489562,1763622503656,173.594965,0.00041987,120]
[394489570,1763622632142,-166.66,0.00016023,2]
[394489571,1763622632151,-250.0,0.00016111,2]
[394489572,1763622632160,-300.0,0.00016199,2]
[394489573,1763622632169,-1200.0,0.00016199,2]
[394489574,1763622632178,-150.0,0.000162,2]
[394489575,1763622632187,-150.0,0.000162,2]
[394489576,1763622632196,-150.0,0.000162,2]
[394489577,1763622632205,-150.00000001,0.000162,2]
[394489578,1763622632214,-150.0,0.000162,2]
[394489579,1763622632223,-150.0,0.000162,2]
[394489580,1763622632232,-150.0,0.000162,2]
[394489581,1763622632241,-150.0,0.000162,2]
[394489582,1763622632250,-150.0,0.000162,2]
[394489583,1763622632259,-205.59351243,0.000162,2]
[394489584,1763622632268,-150.0,0.000162,2]
[394489585,1763622632277,-150.0,0.000162,2]
[394489586,1763622632286,-166.66,0.0001636,2]
[394489587,1763622632295,-301.56,0.00016387,2]
[394489588,1763622632305,-500.0,0.00016456,2]
[394489589,1763622632314,-14988.88217707,0.000165,2]
[394489590,1763622632323,-200.0,0.00016545,2]
[394489591,1763622632332,-26625.81,0.0001656,2]
[394489592,1763622632340,-2072.98,0.00016585,2]
[394489593,1763622632350,-150.0,0.0001665,2]
[394489594,1763622632359,-166.66,0.00016697,2]
[394489595,1763622632368,-500.0,0.0001672,2]
[394489596,1763622632377,-550.0,0.00016732,2]
[394489598,1763622632386,-1421.56,0.00016741,2]
[394489599,1763622632395,-150.0,0.00016741,2]
[394489601,1763622632404,-6916.37,0.00016741,2]
[394489603,1763622632413,-200.0,0.00016741,2]
[394489605,1763622632422,-500.0,0.000168,2]
[394489607,1763622632432,-500.0,0.000168,2]
[394489609,1763622632442,-313.99370442,0.000168,2]
[394489612,1763622632452,-500.32492851,0.000168,2]
[394489613,1763622632461,-500.0,0.000168,2]
[394489633,1763622632616,-501.51080569,0.0001682,2]
[394489635,1763622632633,-500.0,0.0001682,2]
[394489638,1763622632642,-500.0,0.0001682,2]
[394489640,1763622632651,-500.0,0.0001682,2]
[394489642,1763622632661,-500.0,0.0001685,2]
[394489644,1763622632673,-500.0,0.0001685,2]
[394489645,1763622632682,-150.99,0.00016922,2]
[394489647,1763622632691,-1203.58544031,0.00016922,2]
[394489650,1763622632702,-1553.14455969,0.00016922,2]
[394489652,1763622632712,-38797.7904048,0.00016933,2]
[394489654,1763622632724,-73919.16042626,0.00016933,2]
[394489656,1763622632735,-6659.6293135,0.00016933,2]
[394489658,1763622632746,-12127.65336345,0.00016933,2]
[394489691,1763622638158,-628495.76649199,0.00016933,2]
[394489692,1763622638168,-250.0,0.00017,2]
[394489693,1763622638177,-151.0,0.00017024,2]
[394489694,1763622638186,-151.0,0.00017024,2]
[394489695,1763622638196,-151.0,0.00017024,2]
[394489696,1763622638206,-151.0,0.00017024,2]
[394489697,1763622638215,-151.0,0.00017024,2]
[394489698,1763622638225,-151.0,0.00017024,2]
[394489699,1763622638234,-151.0,0.00017024,2]
[394489700,1763622638244,-151.0,0.00017024,2]
[394489701,1763622638253,-151.0,0.00017024,2]
[394489702,1763622638262,-151.0,0.00017024,2]
[394489703,1763622638271,-151.0,0.00017024,2]
[394489704,1763622638281,-151.0,0.00017024,2]
[394489705,1763622638290,-151.0,0.00017024,2]
[394489706,1763622638299,-151.0,0.00017024,2]
[394489707,1763622638308,-151.0,0.00017024,2]
[394489708,1763622638318,-155.41844459,0.00017024,2]
[394489709,1763622638328,-1273.56,0.00017024,2]
[394489710,1763622638338,-9086.33786212,0.00017033,2]
[394489711,1763622638347,-35502.76,0.00017034,2]
[394489712,1763622638356,-166.66,0.00017035,2]
[394489713,1763622638365,-217.06,0.00017066,2]
[394489714,1763622638374,-12759.2,0.00017077,2]
[394489715,1763622638383,-150.0,0.000171,2]
[394489716,1763622638392,-213.19,0.00017168,2]
[394489717,1763622638401,-1000.0,0.00017268,2]
[394489718,1763622638410,-301.56,0.00017297,2]
[394489719,1763622638419,-1273.56,0.00017298,2]
[394489720,1763622638428,-472.01807675,0.00017348,2]
[394489721,1763622638437,-1000.0,0.00017368,2]
[394489722,1763622638446,-166.66,0.00017372,2]
[394489723,1763622638455,-500.0,0.00017397,2]
[394489724,1763622638464,-473.0,0.00017464,2]
[394489725,1763622638474,-150.0,0.00017522,2]
[394489726,1763622638483,-150.0,0.0001755,2]
[394489727,1763622638492,-1273.56,0.00017572,2]
[394489728,1763622638501,-1000.0,0.000176,2]
[394489729,1763622638511,-300.0,0.00017625,2]
[394489730,1763622638520,-300.0,0.00017625,2]
[394489731,1763622638530,-300.0,0.00017625,2]
[394489732,1763622638540,-300.0,0.00017625,2]
[394489733,1763622638550,-300.0,0.00017625,2]
[394489734,1763622638560,-200.0,0.00017625,2]
[394489735,1763622638570,-150.12675746,0.00017625,2]
[394489736,1763622638579,-250.0,0.00017625,2]
[394489737,1763622638589,-200.0,0.00017625,2]
[394489738,1763622638599,-200.0,0.00017625,2]
[394489739,1763622638608,-200.0,0.00017625,2]
[394489740,1763622638619,-200.0,0.00017625,2]
[394489741,1763622638629,-222.41932101,0.00017673,2]
[394489742,1763622638639,-420.0,0.00017707,2]
[394489743,1763622638650,-166.66,0.00017709,2]
[394489744,1763622638659,-473.0,0.00017759,2]
[394489745,1763622638670,-162.95436659,0.00017763,2]
[394489746,1763622638682,-822.0,0.00017792,2]
[394489747,1763622638692,-1600.0,0.00017792,2]
[394489748,1763622638703,-794.0,0.00017792,2]
[394489749,1763622638714,-1256.0,0.00017792,2]
[394489750,1763622638725,-1220.186,0.00017792,2]
[394489751,1763622638738,-907.0,0.00017792,2]
[394489752,1763622638748,-1605.0,0.00017792,2]
[394489753,1763622638760,-705.0,0.00017792,2]
[394489754,1763622638769,-6494.0,0.00017792,2]
[394489755,1763622638780,-1680.0,0.00017796,2]
[394489756,1763622638790,-213.34167533,0.00017797,2]
[394489757,1763622638800,-1724.0,0.000178,2]
[394489758,1763622638810,-2500.0,0.000178,2]
[394489759,1763622638820,-248.44065343,0.000178,2]
[394489760,1763622638830,-1500.0,0.00017816,2]
[394489761,1763622638840,-645.54126146,0.00017816,2]
[394489762,1763622638850,-1920.23312,0.0001782,2]
[394489763,1763622638859,-645.54126139,0.00017825,2]
[394489764,1763622638869,-645.54126139,0.00017835,2]
[394489765,1763622638879,-935.0,0.00017837,2]
[394489766,1763622638890,-645.54126139,0.00017844,2]
[394489767,1763622638901,-1273.56,0.00017846,2]
[394489768,1763622638911,-645.54126139,0.00017853,2]
[394489769,1763622638921,-645.54126139,0.00017863,2]
[394489770,1763622638931,-150.0,0.00017867,2]